Cogmind - Beta 14 @@@ ROGUE MODE // 2024.08.08 @ 16:59:55 Player: Sgt. SmokeWeed Result: Destroyed by UW-AZU(R) with Subdweller Laser Performance ------------- Evolutions (0) 0 Regions Visited (3) 600 Robots Destroyed (15) 75 Value Destroyed (294) 294 Prototype IDs (0) 0 Alien Tech Used (0) 0 Bonus (0) 0 TOTAL SCORE: 969 Bonus ------- None Cogmind --------- Core Integrity 0/250 Matter 281/300 Energy 93/100 System Corruption 0% Temperature Warm (139) Movement Rolling (110) Location -10/Subcaves Parts ------- > --- POWER (1) -------- (None) > --- PROPULSION (2) --- Subdweller Monowheel Subdweller Monowheel > --- UTILITY (2) ------ (None) > --- WEAPON (2) ------- Assault Rifle > --- INVENTORY (5) ---- (None) Peak State ------------ > --- POWER ------------ Light Ion Engine > --- PROPULSION ------- Subdweller Monowheel Subdweller Monowheel > --- UTILITY ---------- (None) > --- WEAPON ----------- Assault Rifle Assault Rifle > --- INVENTORY -------- (None) [Rating: 7] Favorites ----------- Power Light Ion Engine Engine Light Ion Engine Propulsion Light Treads Treads Light Treads Wheel Subdweller Monowheel Utility None Weapon Assault Rifle Ballistic Gun Assault Rifle Build | -11 -10 -10 -10 ------- Run | Yrd Mat Min Sub Slots Evolved . | . . . . Power . | . . . . Propulsion . | . . . . Utility . | . . . . Weapon . | . . . . Parts Attached 10 | 5 3 . 2 Power 2 | 1 1 . . Engine 2 | 1 1 . . Core . | . . . . Reactor . | . . . . Propulsion 4 | 2 . . 2 Treads 2 | 2 . . . Leg . | . . . . Wheel 2 | . . . 2 Hover . | . . . . Flight . | . . . . Utility . | . . . . Device . | . . . . Storage . | . . . . Processor . | . . . . Hackware . | . . . . Protection . | . . . . Artifact . | . . . . Weapon 4 | 2 2 . . Energy Gun . | . . . . Energy Cannon . | . . . . Ballistic Gun 4 | 2 2 . . Ballistic Cannon . | . . . . Launcher . | . . . . Special Weapon . | . . . . Impact Weapon . | . . . . Slashing Weapon . | . . . . Piercing Weapon . | . . . . Special Melee Weapon . | . . . . Unidentified Prototypes . | . . . . Parts Lost 5 | . 1 1 3 Power 2 | . 1 . 1 Propulsion 2 | . . 1 1 Utility . | . . . . Weapon 1 | . . . 1 Highest Loss Streak 1 | . 1 1 1 To Critical Strikes . | . . . . Average Slot Usage (%) 60 | . 63 58 59 Engine 11 | . 6 14 12 Treads 16 | . 28 15 7 Wheel 2 | . . . 10 Ballistic Gun 28 | . 28 28 28 Peak Build Rating 7 | 5 5 5 7 Average Rating 4 | 3 4 4 4 On Entrance 3 | . 5 5 4 Naked Turns . | . . . . Heaviest Build 7 | 6 7 7 7 Greatest Support 40 | 40 40 40 40 Greatest Overweight (x) 2 | . . . 2 Average Overweight (x) . | . . . . Largest Inventory Capacity 5 | 5 5 5 5 Average Capacity 5 | 5 5 5 5 Most Carried 1 | . 1 . . Average Carried . | . . . . Final Capacity 5 | 5 5 5 5 Final Carried . | . . . . Class Distribution -------------------- 100% | Mutant Dominant Class ---------------- Mutant | -10/Materials Mutant | -10/Mines Mutant | -10/Subcaves Resources | -11 -10 -10 -10 ----------- Run | Yrd Mat Min Sub Matter Collected 469 | 219 141 23 86 Remotely . | . . . . Salvage Created 398 | . 259 34 105 Parts 29 | . 18 8 3 Haulers Intercepted . | . . . . Recyclers Shooed . | . . . . Parts Field Recycled . | . . . . Retrieved Matter . | . . . . Parts Self-Destructed . | . . . . Prevented . | . . . . Kills | -11 -10 -10 -10 ------- Run | Yrd Mat Min Sub Combat Hostiles Destroyed 11 | . 6 3 2 Guns 11 | . 6 3 2 Classes Destroyed 7 | . 6 . 1 Worker 1 | . 1 . . Builder 1 | . 1 . . Tunneler 1 | . 1 . . Recycler 1 | . 1 . . Swarmer 6 | . 3 3 . Grunt 3 | . 3 . . Subdweller 2 | . . . 2 Best Kill Streak 7 | . 7 3 1 Combat Bots Only 5 | . 5 3 1 Max Kills in Single Turn 2 | . 2 2 1 Gunslinging 1 | . . 1 . Exploded . | . . . . Melee . | . . . . Uniques/NPCs Destroyed . | . . . . Combat | -11 -10 -10 -10 -------- Run | Yrd Mat Min Sub Hostile Shots Fired 86 | . 62 7 17 Missed 29 | . 22 2 5 Damage Taken 843 | . 502 40 301 Core 270 | . 139 6 125 Absorbed by Shields . | . . . . Core Remaining (%) 100 | 100 . . . Volleys Fired 46 | . 32 3 11 Largest 2 | . 2 2 2 Hottest 40 | . 40 40 40 Shots Fired 92 | . 64 6 22 Gun 92 | . 64 6 22 Cannon . | . . . . Launcher . | . . . . Special . | . . . . Kinetic 92 | . 64 6 22 Thermal . | . . . . Explosive . | . . . . Electromagnetic . | . . . . Robot Hit Streak 12 | . 6 5 12 Robot Miss Streak 3 | . 3 3 1 Penetration Max . | . . . . Secondary Targets 4 | . 3 1 . Max Gunslinging Chain 1 | . 1 1 . Shots Hit Robots 62 | . 38 5 19 Core Hits 20 | . 15 3 2 Critical Kills 1 | . . . 1 Critical Parts Destroyed . | . . . . Critical Strikes 1 | . . . 1 Destroy 1 | . . . 1 Melee Attacks . | . . . . Impact . | . . . . Slashing . | . . . . Piercing . | . . . . Sneak Attacks . | . . . . Combat Hostiles . | . . . . Follow-up Attacks . | . . . . Damage Inflicted 862 | 2 643 61 156 Guns 664 | . 447 61 156 Cannons . | . . . . Explosions 196 | . 196 . . Melee . | . . . . Ramming 2 | 2 . . . Kinetic 664 | . 447 61 156 Thermal 196 | . 196 . . Explosive . | . . . . Electromagnetic . | . . . . Impact . | . . . . Slashing . | . . . . Piercing . | . . . . Highest Corruption . | . . . . Average Corruption . | . . . . Corruption Purged . | . . . . Corruption Blocked . | . . . . Overload Shots . | . . . . Overflow Damage . | . . . . Projectiles . | . . . . Explosions . | . . . . Melee . | . . . . Knockbacks . | . . . . Impact . | . . . . Kinetic . | . . . . Secondary . | . . . . Self-Inflicted Damage 48 | . 48 . . Shots 1 | . 1 . . Rammed 2 | 2 . . . Targets Rammed 2 | 2 . . . Kicked . | . . . . Crushed . | . . . . Highest Temperature 262 | . 18 . 262 Average Temperature 66 | . 7 . 158 Received Heat Transfer 804 | . 177 . 627 Effects 1 | . . . 1 Energy Bleed 1 | . . . 1 Siege Activations . | . . . . Robots Corrupted . | . . . . Combat Hostiles . | . . . . Parts Fried . | . . . . Impact Corruptions . | . . . . Robots Melted . | . . . . Combat Hostiles . | . . . . Parts Melted . | . . . . Heat Transferred 200 | . 200 . . Parts Sabotaged . | . . . . Parts Stolen . | . . . . Parts Stripped . | . . . . Power Chain Reactions . | . . . . Alert | -11 -10 -10 -10 ------- Run | Yrd Mat Min Sub Peak Influence 248 | . 248 156 . Initial 96 | . . 96 . Average 107 | . 149 97 . Maximum Alert Level 1 | . 1 . . Low Security (%) 84 | 100 49 100 . Level 1 15 | . 50 . . Level 2 . | . . . . Level 3 . | . . . . Level 4 . | . . . . Level 5 . | . . . . High Security . | . . . . Max Security . | . . . . Squads Dispatched 1 | . 1 . . Investigation . | . . . . Extermination . | . . . . Reinforcement 1 | . 1 . . Assault . | . . . . Garrison . | . . . . Intercept . | . . . . Searches Triggered . | . . . . Construction Impeded . | . . . . Haulers Reinforced . | . . . . Active Scanning Responses . | . . . . Cargo Convoy Interrupts . | . . . . Stealth | -11 -10 -10 -10 --------- Run | Yrd Mat Min Sub Distress Signals 2 | . 2 . . Communications Jammed . | . . . . Distress Signals . | . . . . Times Spotted 19 | . 12 3 4 Peak Tracking Total 7 | . 7 3 2 Tactical Retreats 1 | . 1 . . Traps | -11 -10 -10 -10 ------- Run | Yrd Mat Min Sub Traps Triggered . | . . . . Indirectly . | . . . . Trap Hack Attempts . | . . . . Triggered . | . . . . Disarmed . | . . . . Reprogrammed . | . . . . Reused . | . . . . Traps Extracted . | . . . . Installed . | . . . . Triggered . | . . . . Machines | -11 -10 -10 -10 ---------- Run | Yrd Mat Min Sub Machines Disabled 2 | . 2 . . Max in Single Turn 2 | . 2 . . Machines Repaired . | . . . . Machines Dismantled . | . . . . Machines Sabotaged . | . . . . Overloaded Fab Kills . | . . . . Hacking | -11 -10 -10 -10 --------- Run | Yrd Mat Min Sub Machines Accessed 2 | . 2 . . Terminals 2 | . 2 . . Fabricators . | . . . . Repair Stations . | . . . . Recycling Units . | . . . . Scanalyzers . | . . . . Garrison Access . | . . . . Total Hacks 4 | . 4 . . Successful 2 | . 2 . . Failed 2 | . 2 . . Catastrophic . | . . . . Database Lockouts . | . . . . Manual 2 | . 2 . . Terminals 4 | . 4 . . Fabricators . | . . . . Repair Stations . | . . . . Recycling Units . | . . . . Scanalyzers . | . . . . Garrison Access . | . . . . Terminal Hacks 2 | . 2 . . Branch Access Points 1 | . 1 . . Zone Layout 1 | . 1 . . Fabricator Hacks . | . . . . Repair Station Hacks . | . . . . Recycling Unit Hacks . | . . . . Scanalyzer . | . . . . Garrison Access Hacks . | . . . . Unauthorized Hacks . | . . . . Terminals . | . . . . Fabricators . | . . . . Repair Stations . | . . . . Recycling Units . | . . . . Scanalyzers . | . . . . Garrison Access . | . . . . Data Cores Recovered . | . . . . Used . | . . . . Hacking Detections 1 | . 1 . . Full Trace Events . | . . . . Feedback Events . | . . . . Feedback Blocked . | . . . . Robot Schematics Acquired . | . . . . Robots Built . | . . . . Authchips . | . . . . Time . | . . . . Total Robot Build Rating . | . . . . Part Schematics Acquired . | . . . . Parts Built . | . . . . Authchips . | . . . . Time . | . . . . Total Part Build Rating . | . . . . Parts Repaired . | . . . . Time . | . . . . Parts Recycled . | . . . . Recycled Matter . | . . . . Retrieved Matter . | . . . . Retrieved Components . | . . . . Parts Scanalyzed . | . . . . Part Schematics Acquired . | . . . . Parts Damaged . | . . . . Bothacking | -11 -10 -10 -10 ------------ Run | Yrd Mat Min Sub Used RIF Installer . | . . . . Robots Hacked . | . . . . Non-combat . | . . . . Combat . | . . . . Robot Hacks Applied . | . . . . Relay Couplers Released . | . . . . Fabnet Peak Effective % . | . . . . Robots Rewired . | . . . . Allies Hacked . | . . . . Hacks Repelled . | . . . . Allies | -11 -10 -10 -10 -------- Run | Yrd Mat Min Sub Total Allies . | . . . . Largest Group . | . . . . Highest-Rated Group . | . . . . Highest-Rated Ally . | . . . . Total Orders . | . . . . Ally Attacks . | . . . . Total Damage . | . . . . Kills . | . . . . Allies Corrupted . | . . . . Allies Melted . | . . . . Intel | -11 -10 -10 -10 ------- Run | Yrd Mat Min Sub Robot Analysis Total . | . . . . Derelict Logs Recovered 2 | . . 2 . Drone Launches . | . . . . Drone Recoveries . | . . . . Exploration | -11 -10 -10 -10 ------------- Run | Yrd Mat Min Sub Turns Passed 1232 | 56 288 585 303 Spaces Moved 473 | 32 121 182 138 Core 9 | 4 . . 5 Treads 429 | 28 121 182 98 Legs . | . . . . Wheels 35 | . . . 35 Hover . | . . . . Flight . | . . . . Fastest Speed 50 | 50 160 160 110 Average Speed 155 | 146 160 160 146 Slowest Speed 160 | 160 160 160 160 Overloaded Moves . | . . . . Propulsion Burnouts . | . . . . Robots Hopped . | . . . . Cave-ins Triggered . | . . . . Exploration Rate (%) 24 | 5 26 52 15 Regions Visited 3 Branch Regions 2 Pre-discovered Areas . | . . . . Known Exits Taken 1 | . 1 . . Unknown Exits Taken 2 | 1 . 1 . Scrap Searched . | . . . . Spaces Dug . | . . . . Terrain Destroyed 10 | . 10 . . Melee . | . . . . Projectile . | . . . . AOE 10 | . 10 . . Terrain Rammed . | . . . . Walls Destroyed . | . . . . Machines Disabled . | . . . . Actions | -11 -10 -10 -10 --------- Run | Yrd Mat Min Sub Total 880 | 38 156 470 216 Wait 351 | . . 286 65 Move 470 | 31 120 181 138 Hop . | . . . . Pick Up . | . . . . Fast Attach 8 | 5 1 . 2 Attach 1 | . 1 . . Detach . | . . . . Swap 1 | . 1 . . Drop 1 | . 1 . . Fire 46 | . 32 3 11 Melee . | . . . . Ram . | . . . . Kick . | . . . . Crush 2 | 2 . . . Escape Stasis . | . . . . Rewire . | . . . . Trap . | . . . . Miscellaneous . | . . . . Route ------- -11/Scrapyard -10/Materials -10/Mines (discovered 2 exits: [*Mat] / [*Sub]) -10/Subcaves History --------- Turn | Location | Event 19 | -11/Scrapyard | Discovered new exit (range 15) 57 | -11/Scrapyard | Entered Materials 168 | -10/Materials | Core integrity fell below 50% 227 | -10/Materials | Identified exit to Mines 303 | -10/Materials | Build established: Mutant 345 | -10/Materials | Entered Mines 439 | -10/Mines | Discovered new exit (range 9) 455 | -10/Mines | Learned 2 Materials zone layouts 625 | -10/Mines | Learned location of 2 exits from Materials 924 | -10/Mines | Discovered new exit (range 5) 930 | -10/Mines | Entered Subcaves 1078 | -10/Subcaves | Disturbed a concealed Subdweller 1128 | -10/Subcaves | Shifting Twisted Machinery released Piercing Trap 1129 | -10/Subcaves | Shifting Twisted Machinery released Sub. Monowheel 1232 | -10/Subcaves | Core integrity fell below 20% 1233 | -10/Subcaves | Destroyed by UW-AZU(R) with Subdweller Laser Last Messages --------------- AMBIENT_HEAT=-10 GOAL=ESCAPE Lgt. Treads destroyed. Critical hit (Meltdown: +280). L5-YNR(R) affixes Scrap Shield Fragment to Scrap Shield. L5-YNR(R) suffers critical hit (Destroy). L5-YNR(R) destroyed. Acquired 53 matter. Acquired Sub. Monowheel. Subatomizers dissect the Disposable Heat Sink. Piercing Trap falls loose from the Twisted Machinery. Sub. Monowheel falls loose from the Twisted Machinery. Acquired Sub. Monowheel. Lgt. Ion Engine destroyed. MD-0W0(R) destroyed. Acquired 33 matter. UW-AZU(R): "WEHOME!" Critical hit (Meltdown: +260). Overheating: Energy bleed (-20). Assault Rifle destroyed. Map ----- +----------------------------------------------------+ | ???????????????????????????????????????????? | | ???????????????????????????????????????????? | | ???????????????????????????????????????????? | | ???????????????????????????????????????????? | | ???????????????????????????????????????????? | | ???????????????????????????????????????????? | | ???????????????????????????????????????????? | | ???????????????????????????????????????????? | | ???????????????????????????????????????????? | | ???????????????????????????????????????????? | | ???????????????????????????????????????????? | | ???????????????????????????????????????????? | | ????????????????????????#??????????????????? | | ????????????????????????# ????????????????? | | ????????????????????????# ????????????????? | | ???????????????????????? #??????????????? | | ???????????????????????? #??????????????? | | ?????????????????????????" "#??????????????? | | ?????????????????????????"""#??????????????? | | ??????????????????????????""#??????????????? | | ?????????????????????????? "#??????????????? | | ??????????????????????????# #??????????????? | | ?????????????????????????## #??????????????? | | ????????????????????????## "#??????????????? | | ????????????????????????#RR"#??????????????? | | ????????????????###???###@ "#??????????????? | | ???????????????## #?## ""##??????????????? | | ??????????????## ### !%= #???????????????? | | ??????????????#""" ## "##??????????????? | | ??????????????# """" "#??????????????? | | ??????????????# """"# ### "##??????????????? | | ??????????###### "" "### #??????????????? | | ??????????? "## &" """"" ##??????????????? | | ???????????## ## ""##"#" #???????????????? | | ??????????## !## ##??#"""???????????????? | | ????????###" #### ##??? ""???????????????? | | ????????# ## "##### #???? ##??????????????? | | ????????# " " # ##?????????????????????? | | ???????## #??????????????????????? | | ???????# ## #??????????????????????? | | ???????#### ######??????????????????????? | | ??????##### ##???????????????????????????? | | ##????# ## #???????????????????????????? | | # ##### ## ####?????????????????????????? | | # ##????????????????????????? | | # #????????????????????????? | | # #????????????????????????? | | # ## # #????????????????????????? | | # #### ### #?##??? ????????????????? | | ##?## #### ## ## #????????????????? | +----------------------------------------------------+ Best States ------------- Heat Dissipation 25 Energy Generation 10 Energy Capacity 125 Matter Stores 300 Matter Capacity 300 Sight Range 16 Terrain Scan Density 10 Evasion (%) 40 Recoil Reduction 2 Item Schematics ----------------- None Robot Schematics ------------------ None Fabricated ------------ Nothing Alien Tech Used ----------------- None Achievements -------------- None Challenges ------------ None Game ------ Seed MasterOpticalStabilizer Manual? 0 Play Time 00:05:24 Cumulative 66.9 hours Start 2024.08.08 @ 16:55:39 End 2024.08.08 @ 16:59:55 Sessions 1 Manual Loads 0 Difficulty Rogue Special Mode None Game No. 156 Rogue 81 Adventurer 75 Explorer 0 Win Type - Total 0 Types 0/0/0/0/0/0/0/0/0 Lore% 34 Gallery% 41 Achievement% 34 Wizard Run 0 Options --------- Layout 0 ASCII 0 Keyboard 0 Movement Mouse Keybinds 0 Fullscreen 1 Font 24/Smallcaps Map View 76x50 Zoom Use 0% Tactical HUD 0 Map Filters NONE Filters NONE Steam 1 RUN: 4da178c8-eebd-4085-99f2-65994be2b41b